bitfinex-derivatives/quotes_BNBF0:USTF0_20241231
["timestamp","ask_amount","ask_price","bid_price","bid_amount"]
[1735619641621,1.53178853,706.05,704.17,1.06499162]
[1735619641821,1.53178853,706.04,704.17,1.06499162]
[1735619642022,1.53178853,706.03,704.17,1.06499162]
[1735619642219,1.53178853,706.02,704.17,1.06499162]
[1735619642415,1.48038385,706.06,704.09,0.28405459]
[1735619642416,1.53178853,706.01,704.19,1.06499162]
[1735619642614,1.27098083,706.0,704.19,1.06499162]
[1735619642918,1.27098083,705.99,704.19,1.06499162]
[1735619643116,1.27098083,705.98,704.19,1.06499162]
[1735619643320,1.27098083,705.97,704.09,0.28405459]
[1735619643620,1.27098083,705.96,704.09,0.28405459]
[1735619643822,1.27098083,705.95,704.09,0.28405459]
[1735619644021,1.27098083,705.94,704.09,0.28405459]
[1735619644222,1.27098083,705.93,704.09,0.28405459]
[1735619644516,1.27098083,705.92,704.09,0.28405459]
[1735619644721,1.27098083,705.91,704.09,0.28405459]
[1735619645015,1.48038385,706.06,704.09,0.28405459]
[1735619645222,1.27078392,706.05,704.09,0.28405459]
[1735619645421,1.27078392,706.04,704.09,0.28405459]
[1735619645617,1.27078392,706.03,704.09,0.28405459]
[1735619645824,1.27078392,706.02,704.09,0.28405459]
[1735619646123,1.27078392,706.01,704.09,0.28405459]
[1735619646423,1.27078392,706.0,704.09,0.28405459]
[1735619646617,1.27078392,705.99,704.09,0.28405459]
[1735619646817,1.27056806,705.98,704.09,0.28405459]
[1735619647023,1.27056806,705.97,704.09,0.28405459]
[1735619647222,1.27056806,705.96,704.09,0.28405459]
[1735619647424,1.27056806,705.95,704.09,0.28405459]
[1735619647622,1.27056806,705.94,704.09,0.28405459]
[1735619647821,1.27056806,705.93,704.09,0.28405459]
[1735619648019,1.27056806,705.92,704.09,0.28405459]
[1735619648218,1.27056806,705.91,704.09,0.28405459]
[1735619648423,1.27056806,705.9,704.09,0.28405459]
[1735619648723,1.27056806,705.89,704.09,0.28405459]
[1735619649022,1.27056806,705.88,704.09,0.28405459]
[1735619649222,1.27056806,705.87,704.09,0.28405459]
[1735619649422,1.27056806,705.86,704.09,0.28405459]
[1735619649624,1.27056806,705.85,704.09,0.28405459]
[1735619649823,1.27056806,705.84,704.09,0.28405459]
[1735619650024,1.27056806,705.83,704.09,0.28405459]
[1735619650225,1.27056806,705.82,704.09,0.28405459]
[1735619650425,1.27056806,705.81,704.09,0.28405459]
[1735619650625,1.27056806,705.8,704.09,0.28405459]
[1735619650825,1.48038385,706.06,704.09,0.28405459]
[1735619651027,1.27082365,706.05,704.09,0.28405459]
[1735619651222,1.27082365,706.04,704.09,0.28405459]
[1735619651425,1.27082365,706.03,704.09,0.28405459]
[1735619651623,1.27082365,706.02,704.09,0.28405459]
[1735619651821,1.27082365,706.01,704.09,0.28405459]
[1735619652122,1.27082365,706.0,704.09,0.28405459]
[1735619652326,1.27082365,705.99,704.09,0.28405459]
[1735619652526,1.27082365,705.98,704.09,0.28405459]
[1735619652725,1.27082365,705.97,704.09,0.28405459]
[1735619652926,1.27082365,705.96,704.09,0.28405459]
[1735619653128,1.27082365,705.95,704.09,0.28405459]
[1735619653325,1.27082365,705.94,704.09,0.28405459]
[1735619653525,1.27082365,705.93,704.09,0.28405459]
[1735619653724,1.27082365,705.92,704.09,0.28405459]
[1735619653927,1.27167271,705.91,704.09,0.28405459]
[1735619654227,1.27167271,705.9,704.09,0.28405459]
[1735619654423,1.48038385,706.06,704.09,0.28405459]
[1735619654424,1.27172811,705.89,704.09,0.28405459]
[1735619654622,1.27172811,705.88,704.09,0.28405459]
[1735619654823,1.27172811,705.87,704.09,0.28405459]
[1735619655022,1.27172811,705.86,704.09,0.28405459]
[1735619655226,1.27172811,705.85,704.09,0.28405459]
[1735619655428,1.27172811,705.84,704.09,0.28405459]
[1735619655622,1.48038385,706.06,704.09,0.28405459]
[1735619655623,1.27172811,705.83,704.09,0.28405459]
[1735619655822,1.27172811,705.82,704.09,0.28405459]
[1735619656024,1.27172811,705.81,704.09,0.28405459]
[1735619656230,1.27203759,705.8,704.09,0.28405459]
[1735619656423,1.27203759,705.79,704.09,0.28405459]
[1735619656723,1.27203759,705.78,704.09,0.28405459]
[1735619656927,1.27203759,705.77,704.09,0.28405459]
[1735619657127,1.27203759,705.76,704.09,0.28405459]
[1735619657328,1.27203759,705.75,704.09,0.28405459]
[1735619657533,1.27203759,705.74,704.09,0.28405459]
[1735619657730,1.27203759,705.73,704.09,0.28405459]
[1735619657933,1.48038385,706.06,704.09,0.28405459]
[1735619657934,1.27203759,705.72,704.09,0.28405459]
[1735619658231,1.27203759,705.71,704.09,0.28405459]
[1735619658431,1.27203759,705.7,704.09,0.28405459]
[1735619658627,1.27203759,705.69,704.09,0.28405459]
[1735619658829,1.27203759,705.68,704.09,0.28405459]
[1735619659033,1.27203759,705.67,704.09,0.28405459]
[1735619659236,1.27203759,705.66,704.09,0.28405459]
[1735619659432,1.48038385,706.06,704.09,0.28405459]
[1735619659633,1.27237769,706.05,704.09,0.28405459]
[1735619659833,1.48038385,706.06,704.09,0.28405459]
[1735619659834,1.27237769,706.04,704.09,0.28405459]
[1735619660034,1.27237769,706.03,704.09,0.28405459]
[1735619660229,1.48038385,706.06,704.09,0.28405459]
[1735619660430,1.27239378,706.05,704.09,0.28405459]
[1735619660637,1.27239378,706.04,704.09,0.28405459]
[1735619660830,1.27239378,706.03,704.09,0.28405459]
[1735619661034,1.27239378,706.02,704.09,0.28405459]
[1735619661236,1.27239378,706.01,704.26,1.06499162]
[1735619661436,1.27239378,706.0,704.28,0.28397796]
[1735619661636,1.27239378,705.99,704.28,0.28397796]
[1735619661836,1.27239378,705.98,704.28,0.28397796]
[1735619662031,1.27239378,705.97,704.28,0.28397796]
[1735619662232,1.27239378,705.96,704.29,1.06499162]
[1735619662435,1.27239378,705.95,704.29,1.06499162]
[1735619662631,1.48044158,705.97,704.29,1.06499162]
[1735619662632,1.27239378,705.94,704.29,1.06499162]
[1735619662836,1.27239378,705.93,704.29,1.06499162]
[1735619663039,1.27239378,705.92,704.29,1.06499162]
[1735619663338,1.27261835,705.91,704.28,0.28397796]
[1735619663538,1.27261835,705.9,704.31,0.28396586]
[1735619663734,1.27261835,705.89,704.31,0.28396586]
[1735619663932,1.27261835,705.88,704.31,0.28396586]
[1735619664132,1.27261835,705.87,704.31,0.28396586]
[1735619664336,1.27261835,705.86,704.31,0.28396586]
[1735619664639,2.32623721,705.85,704.31,0.28396586]
[1735619664832,1.27261835,705.84,704.31,0.28396586]
[1735619665036,1.27261835,705.83,704.31,0.28396586]
[1735619665236,1.27261835,705.82,704.31,0.28396586]
[1735619665437,1.27348317,705.81,704.31,0.28396586]
[1735619665635,1.27348317,705.8,704.31,0.28396586]
[1735619665837,1.27348317,705.79,704.31,0.28396586]
[1735619666040,1.27348317,705.78,704.31,0.28396586]
[1735619666237,1.27348317,705.77,704.31,0.28396586]
[1735619666438,1.27364542,705.76,704.31,0.28396586]
[1735619666639,1.27364542,705.75,704.31,0.28396586]
[1735619666833,1.48044158,705.97,704.31,0.28396586]
[1735619666834,1.27364542,705.74,704.31,0.28396586]
[1735619667037,1.27364542,705.73,704.31,0.28396586]
[1735619667238,1.27364542,705.72,704.31,0.28396586]
[1735619667441,1.27364542,705.71,704.31,0.28396586]
[1735619667640,1.27364542,705.7,704.31,0.28396586]
[1735619667835,1.27364542,705.69,704.31,0.28396586]
[1735619668042,1.27364542,705.68,704.31,0.28396586]
[1735619668340,1.27364542,705.67,704.31,0.28396586]
[1735619668537,1.27364542,705.66,704.31,0.28396586]
[1735619668740,1.27364542,705.65,704.31,0.28396586]
[1735619669040,1.27364542,705.64,704.31,0.28396586]
[1735619669240,1.27364542,705.63,704.31,0.28396586]
[1735619669440,1.05361886,705.89,704.31,0.28396586]
[1735619669741,1.27495841,705.88,704.31,0.28396586]
[1735619669941,1.27495841,705.87,704.31,0.28396586]
[1735619670135,1.27495841,705.86,704.31,0.28396586]
[1735619670341,1.27495841,705.85,704.31,0.28396586]
[1735619670641,1.27495841,705.84,704.31,0.28396586]
[1735619670837,1.27495841,705.83,704.31,0.28396586]
[1735619671041,1.27495841,705.82,704.31,0.28396586]
[1735619671241,1.27495841,705.81,704.31,0.28396586]
[1735619671441,1.27495841,705.8,704.31,0.28396586]
[1735619671642,1.27495841,705.79,704.31,0.28396586]
[1735619671843,1.27495841,705.78,704.31,0.28396586]
[1735619672142,1.27495841,705.77,704.31,0.28396586]
[1735619672442,1.05361886,705.95,704.31,0.28396586]
[1735619672443,1.27495841,705.76,704.31,0.28396586]
[1735619672638,1.27569155,705.75,704.31,0.28396586]
[1735619672836,1.27569155,705.74,704.31,0.28396586]
[1735619673041,1.27569155,705.73,704.31,0.28396586]
[1735619673239,1.27569155,705.72,704.31,0.28396586]
[1735619673442,1.27569155,705.71,704.31,0.28396586]
[1735619673639,1.27569155,705.7,704.31,0.28396586]
[1735619673843,1.27569155,705.69,704.31,0.28396586]
[1735619674040,1.27569155,705.68,704.31,0.28396586]
[1735619674339,1.27569155,705.67,704.31,0.28396586]
[1735619674541,1.27569155,705.66,704.31,0.28396586]
[1735619674847,1.27606355,705.65,704.31,0.28396586]
[1735619675041,1.27606355,705.64,704.31,0.28396586]
[1735619675244,1.27606355,705.63,704.31,0.28396586]
[1735619675445,1.27606355,705.62,704.31,0.28396586]
[1735619675638,1.27606355,705.61,704.31,0.28396586]
[1735619675840,1.27606355,705.6,704.31,0.28396586]
[1735619676043,1.27606355,705.59,704.31,0.28396586]
[1735619676245,1.27606355,705.58,704.31,0.28396586]
[1735619676445,1.27606355,705.57,704.31,0.28396586]
[1735619676646,1.27606355,705.56,704.31,0.28396586]
[1735619676948,1.27606355,705.55,704.31,0.28396586]
[1735619677147,1.27606355,705.54,704.32,1.06499162]
[1735619677348,1.27606355,705.53,704.33,0.2839578]
[1735619677552,1.27606355,705.52,704.33,0.2839578]
[1735619677848,1.27606355,705.51,704.33,0.2839578]
[1735619678044,1.27606355,705.5,704.33,0.2839578]
[1735619678247,1.05361886,705.77,704.33,0.2839578]
[1735619678248,1.27606355,705.49,704.33,0.2839578]
[1735619678448,1.27606355,705.48,704.33,0.2839578]
[1735619678642,1.27606355,705.47,704.33,0.2839578]
[1735619678844,1.27606355,705.46,704.33,0.2839578]
[1735619679049,1.27606355,705.45,704.33,0.2839578]
[1735619679248,1.27606355,705.44,704.33,0.2839578]
[1735619679444,1.27606355,705.43,704.33,0.2839578]
[1735619679645,1.27606355,705.42,704.33,0.2839578]
[1735619679843,1.27606355,705.41,704.33,0.2839578]
[1735619680044,1.27606355,705.4,704.33,1.34894942]
[1735619680245,1.27644688,705.39,704.33,1.34894942]
[1735619680445,1.27642841,705.38,704.33,1.34894942]
[1735619680649,1.27642841,705.37,704.33,1.34894942]
[1735619680846,2.53440691,705.8,704.33,1.34894942]
[1735619681048,1.53747521,705.79,704.34,1.06499162]
[1735619681249,1.5374761,705.78,704.36,0.2839457]
[1735619681449,1.5374761,705.77,704.36,0.2839457]
[1735619681648,1.5374761,705.76,704.36,0.2839457]
[1735619681852,1.27682547,705.75,704.36,0.2839457]
[1735619682045,1.27682547,705.74,704.36,0.2839457]
[1735619682344,1.48078805,705.8,704.36,0.2839457]
[1735619682551,1.53790704,705.79,704.36,0.2839457]
[1735619682746,1.53790704,705.78,704.36,0.2839457]
[1735619683051,1.53790704,705.77,704.36,0.2839457]
[1735619683351,1.27702202,705.76,704.36,0.2839457]
[1735619683645,1.27702202,705.75,704.36,0.2839457]
[1735619683850,1.27702202,705.74,704.36,0.2839457]
[1735619684048,1.48078805,705.8,704.36,0.2839457]
[1735619684049,1.27702202,705.73,704.36,0.2839457]
[1735619684350,1.27702202,705.72,704.36,0.2839457]
[1735619684545,1.27702202,705.71,704.36,0.2839457]
[1735619684750,1.27702202,705.7,704.36,0.2839457]
[1735619685049,1.27729097,705.69,704.36,0.2839457]
[1735619685246,1.27729097,705.68,704.36,0.2839457]
[1735619685447,1.27729097,705.67,704.36,0.2839457]
[1735619685647,1.27729097,705.66,704.36,0.2839457]
[1735619685851,1.27729097,705.65,704.36,0.2839457]
[1735619686049,1.27729097,705.64,704.36,0.2839457]
[1735619686248,1.27729097,705.63,704.36,0.2839457]
[1735619686449,1.27729097,705.62,704.36,0.2839457]
[1735619686645,1.27729097,705.61,704.36,0.2839457]
[1735619686850,1.27729097,705.6,704.36,0.2839457]
[1735619687046,1.27729097,705.59,704.36,0.2839457]
[1735619687252,1.27729097,705.58,704.36,0.2839457]
[1735619687453,1.27729097,705.57,704.36,0.2839457]
[1735619687653,1.27729097,705.56,704.36,0.2839457]
[1735619687952,1.27729097,705.55,704.36,0.2839457]
[1735619688154,1.27824311,705.54,704.36,0.2839457]
[1735619688354,1.27824311,705.53,704.36,0.2839457]
[1735619688554,1.27824311,705.52,704.36,0.2839457]
[1735619688754,1.27824311,705.51,704.36,0.2839457]
[1735619689051,1.27824311,705.5,704.36,0.2839457]
[1735619689252,1.27824311,705.49,704.36,0.2839457]
[1735619689453,1.27824311,705.48,704.36,0.2839457]
[1735619689653,1.27824311,705.47,704.36,0.2839457]
[1735619689849,1.27824311,705.46,704.36,0.2839457]
[1735619690054,1.05361886,705.81,704.36,0.2839457]
[1735619690055,1.27824311,705.45,704.36,0.2839457]
[1735619690249,1.27824311,705.44,704.36,0.2839457]
[1735619690452,1.27824311,705.43,704.36,0.2839457]
[1735619690653,1.27824311,705.42,704.36,0.2839457]
[1735619690851,1.27824311,705.41,704.36,0.2839457]
[1735619691157,1.27824311,705.4,704.36,0.2839457]
[1735619691351,1.27824311,705.39,704.36,0.2839457]
[1735619691553,1.27824311,705.38,704.36,0.2839457]
[1735619691852,1.27880805,705.37,704.36,0.2839457]
[1735619692056,1.27880805,705.36,704.36,0.2839457]
[1735619692252,1.27880805,705.35,704.36,0.2839457]
[1735619692458,1.05361886,705.77,704.36,0.2839457]
[1735619692751,1.27848617,705.76,704.36,0.2839457]
[1735619692954,1.27848617,705.75,704.36,0.2839457]
[1735619693259,1.27848617,705.74,704.36,0.2839457]
[1735619693461,1.27848617,705.73,704.36,0.2839457]
[1735619693659,1.27848617,705.72,704.36,0.2839457]
[1735619693860,1.27848617,705.71,704.36,0.2839457]
[1735619694160,1.27848617,705.7,704.36,0.2839457]
[1735619694361,1.27848617,705.69,704.36,0.2839457]
[1735619694562,1.27848617,705.68,704.44,1.06499162]
[1735619694862,1.27848617,705.67,704.46,0.2839054]
[1735619695061,1.27848617,705.66,704.46,0.2839054]
[1735619695261,1.27848617,705.65,704.46,0.2839054]
[1735619695561,1.27848617,705.64,704.47,1.06499162]
[1735619695755,1.27848617,705.63,704.48,0.28389734]
[1735619695956,1.27848617,705.62,704.48,0.28389734]
[1735619696159,1.27848617,705.61,704.48,0.28389734]
[1735619696361,1.27848617,705.6,704.48,0.28389734]
[1735619696560,1.27848617,705.59,704.51,1.06499162]
[1735619696860,1.27848617,705.58,704.52,0.28388122]
[1735619697061,1.27848617,705.57,704.52,0.28388122]
[1735619697258,1.27848617,705.56,704.52,0.28388122]
[1735619697461,1.2789138,705.55,704.54,1.06499162]
[1735619697660,1.2789138,705.54,704.54,1.06499162]
[1735619697860,1.2789138,705.53,704.54,1.06499162]
[1735619698062,1.2789138,705.52,704.54,1.06499162]
[1735619698361,1.2789138,705.51,704.58,1.06499162]
[1735619698562,1.2789138,705.5,704.59,0.28385302]
[1735619698862,1.2789138,705.49,704.59,0.28385302]
[1735619699061,1.2789138,705.48,704.59,0.28385302]
[1735619699262,1.2789138,705.47,704.59,0.28385302]
[1735619699462,1.2789138,705.46,704.59,0.28385302]
[1735619699658,1.2789138,705.45,704.59,0.28385302]
[1735619699858,1.2789138,705.44,704.59,0.28385302]
[1735619700164,1.2789138,705.43,704.59,0.28385302]
[1735619700362,1.2789138,705.42,704.59,0.28385302]
[1735619700559,1.27890857,705.41,704.59,0.28385302]
[1735619700759,1.27890857,705.4,704.59,0.28385302]
[1735619700958,1.05361886,705.64,704.59,0.28385302]
[1735619701160,1.27892606,705.63,704.59,0.28385302]
[1735619701359,1.27892606,705.62,704.59,0.28385302]
[1735619701564,1.27892606,705.61,704.59,0.28385302]
[1735619701759,1.05361886,705.64,704.59,0.28385302]
[1735619702067,1.27863299,705.63,704.59,0.28385302]
[1735619702368,1.27863299,705.62,704.59,0.28385302]
[1735619702562,2.33225185,705.61,704.59,0.28385302]
[1735619702766,1.27909252,705.6,704.59,0.28385302]
[1735619702966,1.27909252,705.59,704.59,0.28385302]
[1735619703266,1.27909252,705.58,704.59,0.28385302]
[1735619703465,1.27909252,705.57,704.59,0.28385302]
[1735619703660,1.27909252,705.56,704.59,0.28385302]
[1735619703966,1.27909252,705.55,704.59,0.28385302]
[1735619704167,1.27909252,705.54,704.59,0.28385302]
[1735619704365,1.27909252,705.53,704.59,0.28385302]
[1735619704566,1.27909252,705.52,704.59,0.28385302]
[1735619704764,1.27909252,705.51,704.59,0.28385302]
[1735619704963,1.27909252,705.5,704.59,0.28385302]
[1735619705160,1.27909252,705.49,704.59,0.28385302]
[1735619705364,1.27909252,705.48,704.59,0.28385302]
[1735619705567,1.27909252,705.47,704.59,0.28385302]
[1735619705766,1.28011755,705.46,704.59,0.28385302]
[1735619705961,1.28004891,705.45,704.59,0.28385302]
[1735619706161,1.28004891,705.44,704.59,0.28385302]
[1735619706365,1.28004891,705.43,704.59,0.28385302]
[1735619706565,1.28004891,705.42,704.59,0.28385302]
[1735619706765,1.28004891,705.41,704.59,0.28385302]
[1735619706963,1.28004891,705.4,704.59,0.28385302]
[1735619707161,1.28004891,705.39,704.59,0.28385302]
[1735619707367,1.05361886,705.74,704.59,0.28385302]
[1735619707564,1.28025428,705.73,704.59,0.28385302]
[1735619707869,1.28025428,705.72,704.59,0.28385302]
[1735619708068,1.28025428,705.71,704.59,0.28385302]
[1735619708270,1.28025428,705.7,704.59,0.28385302]
[1735619708469,1.28025428,705.69,704.59,0.28385302]
[1735619708666,1.28025428,705.68,704.59,0.28385302]
[1735619708869,1.28013325,705.67,704.59,0.28385302]
[1735619709070,1.05361886,705.75,704.59,0.28385302]
[1735619709071,1.28013325,705.66,704.59,0.28385302]
[1735619709269,1.28013325,705.65,704.59,0.28385302]
[1735619709464,1.28013325,705.64,704.59,0.28385302]
[1735619709667,1.28013325,705.63,704.59,0.28385302]
[1735619709867,1.28013325,705.62,704.59,0.28385302]
[1735619710066,1.28013325,705.61,704.59,0.28385302]
[1735619710372,1.28013325,705.6,704.59,0.28385302]
[1735619710572,1.28013325,705.59,704.59,0.28385302]
[1735619710773,1.28013325,705.58,704.59,0.28385302]
[1735619711071,1.28013325,705.57,704.59,0.28385302]
[1735619711366,1.28013325,705.56,704.59,0.28385302]
[1735619711570,1.4805938,705.82,704.59,0.28385302]
[1735619711571,1.28013325,705.55,704.59,0.28385302]
[1735619711770,1.28013325,705.54,704.59,0.28385302]
[1735619711970,1.28013325,705.53,704.59,0.28385302]
[1735619712170,1.28013325,705.52,704.59,0.28385302]
[1735619712472,1.28013325,705.51,704.59,0.28385302]
[1735619712772,1.28013325,705.5,704.59,0.28385302]
[1735619712971,1.28013325,705.49,704.59,0.28385302]
[1735619713165,1.28013325,705.48,704.59,0.28385302]
[1735619713369,1.28013325,705.47,704.59,0.28385302]
[1735619713665,1.4805938,705.82,704.59,0.28385302]
[1735619713666,1.28013325,705.46,704.59,0.28385302]
[1735619713868,1.28013325,705.45,704.59,0.28385302]
[1735619714167,1.28013325,705.44,704.59,0.28385302]
[1735619714369,1.28013325,705.43,704.59,0.28385302]
[1735619714570,1.28013325,705.42,704.59,0.28385302]
[1735619714871,1.28013325,705.41,704.59,0.28385302]
[1735619715173,1.28013325,705.4,704.59,0.28385302]
[1735619715371,1.28013325,705.39,704.59,0.28385302]
[1735619715573,1.28013325,705.38,704.59,0.28385302]
[1735619715770,1.28013325,705.37,704.59,0.28385302]
[1735619716071,1.28013325,705.36,704.59,0.28385302]
[1735619716370,1.28013325,705.35,704.59,0.28385302]
[1735619716571,1.28013325,705.34,704.59,0.28385302]
[1735619716772,1.28013325,705.33,704.59,0.28385302]
[1735619717070,1.05361886,705.74,704.59,0.28385302]
[1735619717071,1.28013325,705.32,704.59,0.28385302]
[1735619717270,1.05361886,705.74,704.59,0.28385302]
[1735619717271,1.28013325,705.31,704.59,0.28385302]
[1735619717471,1.28013325,705.3,704.59,0.28385302]
[1735619717669,1.28013325,705.29,704.59,0.28385302]
[1735619717972,1.28013325,705.28,704.59,0.28385302]
[1735619718272,1.28072591,705.27,704.59,0.28385302]
[1735619718468,1.28072591,705.26,704.59,0.28385302]
[1735619718668,1.05361886,705.76,704.59,0.28385302]
[1735619718866,1.28125342,705.75,704.59,0.28385302]
[1735619719070,1.05361886,705.71,704.59,0.28385302]
[1735619719268,1.28125342,705.7,704.59,0.28385302]
[1735619719473,1.28125342,705.69,704.59,0.28385302]
[1735619719674,1.28125342,705.68,704.59,0.28385302]
[1735619719871,1.28125342,705.67,704.59,0.28385302]
[1735619720065,1.28125342,705.66,704.59,0.28385302]
[1735619720266,1.28125342,705.65,704.59,0.28385302]
[1735619720566,2.33487228,705.64,704.59,0.28385302]
[1735619720769,1.28125342,705.63,704.59,0.28385302]
[1735619720971,1.05361886,705.64,704.59,0.28385302]
[1735619721373,1.05361886,705.63,704.59,0.28385302]
[1735619722770,1.05361886,705.64,704.59,0.28385302]
[1735619724273,1.05361886,705.67,704.59,0.28385302]
[1735619725471,1.05361886,705.63,704.59,0.28385302]
[1735619726270,1.05361886,705.64,704.59,0.28385302]
[1735619727270,1.05361886,705.65,704.59,0.28385302]
[1735619729167,1.05361886,705.63,704.59,0.28385302]
[1735619730475,1.05361886,705.61,704.59,0.28385302]
[1735619731273,1.05361886,705.6,704.59,0.28385302]
[1735619732275,1.05361886,705.61,704.59,0.28385302]
[1735619735172,1.05361886,705.72,704.59,0.28385302]
[1735619736475,1.05361886,705.75,704.59,0.28385302]
[1735619737374,1.05361886,705.8,704.59,0.28385302]
[1735619738579,1.05361886,705.83,704.59,0.28385302]
[1735619739877,1.05361886,705.84,704.59,0.28385302]
[1735619740873,1.05361886,705.83,704.59,0.28385302]
[1735619741678,1.05361886,705.85,704.59,0.28385302]
[1735619742575,1.05361886,705.86,704.59,0.28385302]
[1735619743483,1.05361886,705.84,704.59,0.28385302]
[1735619744381,1.05361886,705.88,704.59,0.28385302]
[1735619746585,1.05361886,705.89,704.59,0.28385302]
[1735619747486,2.53386628,706.08,704.59,0.28385302]
[1735619747487,1.05361886,705.98,704.59,0.28385302]
[1735619748787,1.48024742,706.08,704.59,0.28385302]
[1735619748788,0.26081585,705.97,704.59,0.28385302]
[1735619749087,1.05361886,706.01,704.59,0.28385302]
[1735619749284,0.26081615,706.0,704.59,0.28385302]
[1735619749683,1.05361886,706.01,704.59,0.28385302]
[1735619749883,0.26082479,706.0,704.59,0.28385302]
[1735619750085,1.05361886,706.0,704.59,0.28385302]
[1735619750489,0.26080815,705.99,704.59,0.28385302]
[1735619750989,1.05361886,706.06,704.59,0.28385302]
[1735619751190,0.26080546,706.05,704.59,0.28385302]
[1735619751586,1.05361886,706.03,704.59,0.28385302]
[1735619751789,0.26080546,706.02,704.59,0.28385302]
[1735619752691,0.26080546,706.01,704.59,0.28385302]
[1735619752890,0.26080546,706.0,704.59,0.28385302]
[1735619753085,0.26080546,705.99,704.59,0.28385302]
[1735619753386,1.05361886,706.06,704.59,0.28385302]
[1735619753585,0.26080164,706.05,704.59,0.28385302]
[1735619754590,0.26080164,706.04,704.59,0.28385302]
[1735619754892,0.26080164,706.03,704.59,0.28385302]
[1735619755087,0.26080319,706.07,704.59,0.28385302]
[1735619755290,0.26080324,706.06,704.59,0.28385302]
[1735619755486,0.26080324,706.05,704.59,0.28385302]
[1735619755686,0.26080489,706.04,704.59,0.28385302]
[1735619755890,0.26080489,706.03,704.59,0.28385302]
[1735619756091,1.48024742,706.08,704.59,0.28385302]
[1735619756294,0.26080222,706.07,704.59,0.28385302]
[1735619757795,0.26081152,706.06,704.59,0.28385302]
[1735619757996,0.26081152,706.05,704.59,0.28385302]
[1735619758297,1.05361886,706.06,704.59,0.28385302]
[1735619759598,1.48000085,706.22,704.59,0.28385302]
[1735619761600,1.05361886,706.33,704.59,0.28385302]
[1735619761795,1.47996413,706.21,704.59,0.28385302]
[1735619762296,1.48004281,706.2,704.59,0.28385302]
[1735619767904,0.26083009,706.19,704.59,0.28385302]
[1735619768802,1.05361886,706.13,704.59,0.28385302]
[1735619769004,0.26083009,706.12,704.59,0.28385302]
[1735619770005,1.05361886,706.05,704.59,0.28385302]
[1735619770800,1.05361886,706.04,704.59,0.28385302]
[1735619772007,1.05361886,706.01,704.59,0.28385302]
[1735619772609,1.48042584,706.0,704.59,0.28385302]
[1735619772806,2.5340447,706.0,704.59,0.28385302]
[1735619774905,1.48042584,706.0,704.59,0.28385302]
[1735619776812,0.26083823,705.99,704.59,0.28385302]
[1735619777413,1.05361886,705.95,704.59,0.28385302]
[1735619778612,1.48042584,706.0,704.59,0.28385302]
[1735619788114,0.26086672,705.99,704.59,0.28385302]
[1735619789410,1.05361886,705.97,704.59,0.28385302]
[1735619789617,0.26086672,705.96,704.59,0.28385302]
[1735619790220,1.05361886,705.97,704.59,0.28385302]
[1735619790922,0.26085787,705.96,704.59,0.28385302]
[1735619791521,0.26085787,705.95,704.59,0.28385302]
[1735619791716,0.26085787,705.94,704.59,0.28385302]
[1735619791918,0.26085787,705.93,704.59,0.28385302]
[1735619792117,1.05361886,705.99,704.59,0.28385302]
[1735619792322,0.26085711,705.98,704.59,0.28385302]
[1735619792625,1.05361886,705.95,704.59,0.28385302]
[1735619792824,0.26085711,705.94,704.59,0.28385302]
[1735619793424,1.05361886,705.91,704.59,0.28385302]
[1735619793727,0.26085711,705.9,704.59,0.28385302]
[1735619794023,0.26086478,705.89,704.59,0.28385302]
[1735619794324,1.05361886,705.91,704.59,0.28385302]
[1735619794524,0.26085925,705.9,704.59,0.28385302]
[1735619795719,1.05361886,705.91,704.59,0.28385302]
[1735619795919,0.26085772,705.9,704.59,0.28385302]
[1735619796824,0.26085819,705.89,704.59,0.28385302]
[1735619797028,0.26085819,705.88,704.59,0.28385302]
[1735619797927,1.05361886,705.87,704.59,0.28385302]
[1735619798226,0.26085819,705.86,704.59,0.28385302]
[1735619798819,1.05361886,705.87,704.59,0.28385302]
[1735619799027,1.05361886,705.83,704.59,0.28385302]
[1735619800122,1.05361886,705.85,704.59,0.28385302]
[1735619801228,1.05361886,705.82,704.59,0.28385302]
[1735619802423,1.05361886,705.77,704.59,0.28385302]
[1735619803726,0.64939026,706.34,704.59,0.28385302]
[1735619803727,1.05361886,705.76,704.59,0.28385302]
[1735619804831,1.05361886,705.73,704.59,0.28385302]
[1735619807428,1.05361886,705.68,704.59,0.28385302]
[1735619808635,1.05361886,705.7,704.59,0.28385302]
[1735619809733,2.5343439,705.75,704.59,0.28385302]
[1735619810433,1.05361886,705.74,704.59,0.28385302]
[1735619811434,1.05361886,705.71,704.59,0.28385302]
[1735619812437,1.05361886,705.73,704.59,0.28385302]
[1735619813531,2.5343439,705.75,704.59,0.28385302]
[1735619815741,1.05361886,705.72,704.59,0.28385302]
[1735619816535,1.05361886,705.73,704.59,0.28385302]
[1735619817541,1.05361886,705.72,704.59,0.28385302]
[1735619818338,1.05361886,705.73,704.59,0.28385302]
[1735619819038,0.26092072,705.72,704.59,0.28385302]
[1735619819444,1.48072504,705.75,704.59,0.28385302]
[1735619819445,1.05361886,705.7,704.59,0.28385302]
[1735619820645,1.05361886,705.68,704.59,0.28385302]
[1735619821243,1.48082481,705.67,704.59,0.28385302]
[1735619822744,0.26092303,705.66,704.59,0.28385302]
[1735619822945,1.05361886,705.66,704.59,0.28385302]
[1735619823541,1.05361886,705.64,704.59,0.28385302]